bitfinex/quotes_BTCUSD_20240828
["timestamp","ask_amount","ask_price","bid_price","bid_amount"]
[1724869185742,0.169227,59092.0,59088.0,0.3138357]
[1724869185959,0.169227,59092.0,59090.0,0.012]
[1724869186174,0.169227,59092.0,59091.0,0.006]
[1724869186629,0.169231,59091.0,59088.0,0.1445987]
[1724869186841,0.338455,59092.0,59088.0,0.0786987]
[1724869186842,0.169236,59089.0,59088.0,0.0786987]
[1724869187074,0.169236,59089.0,59088.0,0.0876987]
[1724869187525,0.169236,59089.0,59088.0,0.0786987]
[1724869187742,0.169236,59089.0,59088.0,0.0916987]
[1724869187952,0.169231,59091.0,59088.0,0.0786987]
[1724869188162,0.339455,59092.0,59088.0,0.0786987]
[1724869188163,0.169234,59090.0,59088.0,0.0786987]
[1724869188381,0.001,59089.0,59088.0,0.0926987]
[1724869189083,0.001,59089.0,59088.0,0.11899277]
[1724869189366,0.169234,59090.0,59088.0,0.11899277]
[1724869189367,0.169234,59090.0,59088.0,0.10499277]
[1724869189582,0.169234,59090.0,59088.0,0.0786987]
[1724869189794,0.169234,59090.0,59088.0,0.0876987]
[1724869190008,0.001,59089.0,59088.0,0.0876987]
[1724869190436,0.169234,59090.0,59088.0,0.0786987]
[1724869190681,0.170234,59090.0,59088.0,0.0876987]
[1724869190893,0.170234,59090.0,59089.0,0.01177681]
[1724869191107,0.171234,59090.0,59089.0,0.01177681]
[1724869191290,0.002,59090.0,59089.0,0.01177681]
[1724869191945,0.001,59090.0,59089.0,0.01177681]
[1724869192162,0.171233,59090.0,59089.0,0.02577681]
[1724869192377,0.166233,59090.0,59089.0,0.02577681]
[1724869193005,0.001,59090.0,59089.0,0.02477681]
[1724869193951,0.002,59090.0,59089.0,0.03277681]
[1724869195362,0.848165,59090.0,59089.0,0.03277681]
[1724869195833,0.848165,59090.0,59089.0,0.022]
[1724869196539,0.847165,59090.0,59089.0,0.014]
[1724869196837,0.848165,59090.0,59089.0,0.022]
[1724869197266,0.847165,59090.0,59089.0,0.014]
[1724869197478,0.508699,59090.0,59089.0,0.014]
[1724869197698,0.848165,59090.0,59089.0,0.021]
[1724869197921,0.847165,59090.0,59089.0,0.007]
[1724869198189,0.848165,59090.0,59089.0,0.019]
[1724869198409,0.848165,59090.0,59089.0,0.007]
[1724869198874,0.849165,59090.0,59089.0,0.018]
[1724869201473,0.003,59090.0,59089.0,0.018]
[1724869201686,0.003,59090.0,59089.0,0.0993]
[1724869201910,0.003,59090.0,59089.0,0.27855587]
[1724869202353,0.003,59090.0,59089.0,0.29028119]
[1724869202612,0.003,59090.0,59089.0,0.02972532]
[1724869202613,0.172233,59090.0,59089.0,0.02972532]
[1724869203118,0.003,59090.0,59089.0,0.02972532]
[1724869203342,0.172233,59090.0,59089.0,0.02972532]
[1724869204718,0.510699,59090.0,59089.0,0.02972532]
[1724869204929,0.849165,59090.0,59089.0,0.02972532]
[1724869205145,0.510699,59090.0,59089.0,0.02972532]
[1724869205368,0.172233,59090.0,59089.0,0.04036772]
[1724869205580,0.172233,59090.0,59089.0,0.0286424]
[1724869205807,0.172233,59090.0,59089.0,0.04036196]
[1724869206025,0.172233,59090.0,59089.0,0.02971956]
[1724869206679,0.003,59090.0,59089.0,0.02971956]
[1724869207372,0.172233,59090.0,59089.0,0.02971956]
[1724869207815,0.003,59090.0,59089.0,0.01130894]
[1724869208040,0.003,59090.0,59089.0,0.0370338]
[1724869208296,0.003,59090.0,59089.0,1.3580858]
[1724869208551,0.003,59090.0,59089.0,1.33236094]
[1724869208796,0.003,59090.0,59089.0,1.67583294]
[1724869209038,0.000817,59093.0,59092.0,1.42776069]
[1724869209302,0.000817,59093.0,59092.0,2.03761569]
[1724869209538,0.000817,59093.0,59092.0,2.4032102]
[1724869210005,0.000817,59093.0,59092.0,2.4022102]
[1724869210251,0.000817,59116.0,59115.0,0.926907]
[1724869210493,0.000817,59116.0,59115.0,1.26523]
[1724869210732,0.000817,59116.0,59115.0,1.63781922]
[1724869210970,0.000817,59116.0,59115.0,1.69951922]
[1724869211416,0.000817,59116.0,59115.0,1.70451922]
[1724869211641,0.000817,59116.0,59115.0,2.15184222]
[1724869211890,0.000817,59116.0,59115.0,1.81351922]
[1724869212369,0.001817,59116.0,59115.0,1.81851922]
[1724869212588,0.001817,59116.0,59115.0,1.81351922]
[1724869212824,0.002817,59116.0,59115.0,1.81751922]
[1724869213070,0.000817,59116.0,59115.0,1.81251922]
[1724869213733,0.001817,59116.0,59115.0,1.82051922]
[1724869214225,0.001817,59116.0,59115.0,1.78451922]
[1724869214440,0.002817,59116.0,59115.0,1.46519622]
[1724869214656,0.002817,59116.0,59115.0,1.46019622]
[1724869215096,0.002817,59116.0,59115.0,1.46519622]
[1724869215522,0.002817,59116.0,59115.0,1.82951922]
[1724869215730,0.002817,59116.0,59115.0,1.83151922]
[1724869216182,0.002817,59116.0,59115.0,1.83651922]
[1724869216646,0.002817,59116.0,59115.0,1.49319622]
[1724869217300,0.002817,59116.0,59115.0,1.49519622]
[1724869217772,0.002817,59116.0,59115.0,1.49319622]
[1724869218014,0.002817,59116.0,59115.0,1.46519622]
[1724869218440,0.002817,59116.0,59115.0,1.46019622]
[1724869219127,0.002817,59116.0,59115.0,1.47019622]
[1724869219337,0.002817,59116.0,59115.0,1.49619622]
[1724869219538,0.002817,59116.0,59115.0,1.49319622]
[1724869220036,0.002817,59116.0,59115.0,1.46019622]
[1724869221364,0.002817,59116.0,59115.0,1.44619622]
[1724869221365,0.001817,59116.0,59115.0,1.44619622]
[1724869221622,0.001817,59116.0,59115.0,1.45019622]
[1724869221835,0.001817,59116.0,59115.0,1.43619622]
[1724869222046,0.002817,59116.0,59115.0,1.44619622]
[1724869222268,0.003817,59116.0,59115.0,1.46019622]
[1724869222477,0.003817,59116.0,59115.0,1.45019622]
[1724869222478,0.002817,59116.0,59115.0,1.45019622]
[1724869222728,0.003817,59116.0,59115.0,1.46019622]
[1724869223155,0.002817,59116.0,59115.0,1.45219622]
[1724869223633,0.003817,59116.0,59115.0,1.82751922]
[1724869223934,0.001817,59116.0,59115.0,1.81351922]
[1724869224168,0.001817,59116.0,59115.0,1.48419622]
[1724869224169,0.002817,59116.0,59115.0,1.48419622]
[1724869224369,0.002817,59116.0,59115.0,1.46119622]
[1724869224575,0.002817,59116.0,59115.0,1.46319622]
[1724869225215,0.002817,59116.0,59115.0,1.48919622]
[1724869225487,0.002817,59116.0,59115.0,1.82751922]
[1724869225697,0.002817,59116.0,59115.0,1.83751922]
[1724869226378,0.50540786,59144.0,59138.0,1.264272]
[1724869226809,0.1472,59149.0,59138.0,1.27532602]
[1724869226810,0.0646,59149.0,59138.0,1.27532602]
[1724869227246,0.0666,59149.0,59138.0,1.27532602]
[1724869228006,0.09077,59153.0,59138.0,1.61351802]
[1724869228242,0.002,59152.0,59138.0,1.61351802]
[1724869228466,0.00817,59153.0,59138.0,1.64851802]
[1724869228467,0.001816,59139.0,59138.0,1.64851802]
[1724869228699,0.000816,59139.0,59138.0,1.63851802]
[1724869228919,0.000816,59139.0,59138.0,1.65051802]
[1724869228920,0.001816,59139.0,59138.0,1.65051802]
[1724869229381,0.001816,59139.0,59138.0,1.28932602]
[1724869229867,0.001816,59139.0,59138.0,1.32832602]
[1724869230356,0.001816,59139.0,59138.0,1.31132602]
[1724869230357,0.000816,59139.0,59138.0,1.31132602]
[1724869230576,0.000816,59139.0,59138.0,1.32532602]
[1724869230796,0.000816,59139.0,59138.0,1.31132602]
[1724869231223,0.000816,59139.0,59138.0,1.30232602]
[1724869231434,0.000816,59139.0,59138.0,1.28832602]
[1724869231663,0.000816,59139.0,59138.0,1.30232602]
[1724869232087,0.000816,59139.0,59138.0,1.28932602]
[1724869232303,0.000816,59139.0,59138.0,1.30332602]
[1724869232994,0.00817,59153.0,59149.0,0.002]
[1724869233243,0.00817,59153.0,59152.0,1.261688]
[1724869233475,0.00817,59153.0,59152.0,0.923577]
[1724869233694,0.00817,59153.0,59152.0,0.85845347]
[1724869234385,0.07297,59153.0,59152.0,0.85845347]
[1724869234608,0.00817,59153.0,59152.0,0.85845347]
[1724869234834,0.00817,59153.0,59152.0,1.19656447]
[1724869235064,0.00817,59153.0,59152.0,1.28886447]
[1724869235845,0.00817,59153.0,59152.0,1.71697547]
[1724869236059,0.00817,59153.0,59152.0,1.72697547]
[1724869236315,0.0004,59159.0,59158.0,1.526346]
[1724869236569,0.0004,59159.0,59158.0,1.93011469]
[1724869236803,0.0004,59159.0,59158.0,2.36819169]
[1724869237085,0.0004,59159.0,59158.0,1.70018687]
[1724869237342,0.0004,59159.0,59158.0,1.43901818]
[1724869237580,0.0004,59159.0,59158.0,0.85834118]
[1724869238302,0.0004,59159.0,59158.0,1.01494118]
[1724869238537,0.0004,59159.0,59158.0,1.27401818]
[1724869238748,0.0004,59159.0,59158.0,0.87234118]
[1724869239384,0.0004,59159.0,59158.0,1.43458687]
[1724869239797,0.0004,59159.0,59158.0,1.46258687]
[1724869240004,0.0004,59159.0,59158.0,0.88634118]
[1724869240212,0.0004,59159.0,59158.0,0.87234118]
[1724869240595,0.0004,59159.0,59158.0,0.52026418]
[1724869240807,0.0004,59159.0,59158.0,0.18218718]
[1724869241049,0.0004,59159.0,59158.0,0.53426418]
[1724869241250,0.0004,59159.0,59158.0,0.02714918]
[1724869241380,0.0004,59159.0,59158.0,0.01314918]
[1724869241579,0.0004,59159.0,59158.0,0.21018718]
[1724869241830,0.993077,59159.0,59158.0,0.04114918]
[1724869242035,1.45427257,59159.0,59158.0,0.04114918]
[1724869242277,1.771219,59159.0,59158.0,0.014]
[1724869242481,1.769219,59159.0,59158.0,0.022]
[1724869242705,0.169093,59139.0,59138.0,0.0008976]
[1724869242979,0.16909,59140.0,59138.0,0.0008976]
[1724869243166,0.1455,59141.0,59138.0,0.0008976]
[1724869243369,0.1455,59141.0,59138.0,0.18255865]
[1724869243716,0.1455,59141.0,59139.0,0.169092]
[1724869243897,0.066,59141.0,59139.0,0.169092]
[1724869244113,0.066,59141.0,59139.0,0.1816571]
[1724869244327,0.066,59141.0,59139.0,0.0125651]
[1724869244544,0.066,59141.0,59138.0,0.0148976]
[1724869244754,0.066,59141.0,59139.0,0.169091]
[1724869244988,0.066,59141.0,59140.0,0.01156415]
[1724869245195,0.066,59141.0,59139.0,0.0125651]
[1724869245424,0.066,59141.0,59140.0,0.01252248]
[1724869245859,0.067,59141.0,59140.0,0.01252248]
[1724869246302,0.067,59141.0,59140.0,0.16909]
[1724869246524,0.066,59141.0,59140.0,0.18161248]
[1724869246797,0.067,59141.0,59140.0,0.54279248]
[1724869247016,0.002,59141.0,59140.0,0.54279248]
[1724869247491,0.002,59141.0,59140.0,0.96187248]
[1724869247719,0.002,59141.0,59140.0,1.30005248]
[1724869248383,0.002,59141.0,59140.0,0.96187248]
[1724869249496,0.002,59141.0,59140.0,1.30205248]
[1724869249754,0.002,59141.0,59140.0,1.32805248]
[1724869250007,0.002,59141.0,59140.0,1.66623248]
[1724869250685,0.001,59141.0,59140.0,1.65123248]
[1724869250889,0.002,59141.0,59140.0,1.65523248]
[1724869251121,0.001,59141.0,59140.0,1.65523248]
[1724869251327,0.001,59141.0,59140.0,1.64723248]
[1724869251548,0.002,59141.0,59140.0,1.66023248]
[1724869251757,0.002,59141.0,59140.0,1.65123248]
[1724869251998,0.002,59141.0,59140.0,1.65323248]
[1724869252243,0.002818,59141.0,59140.0,2.10841248]
[1724869252449,0.000818,59141.0,59140.0,2.09541248]
[1724869252658,0.000818,59141.0,59140.0,2.08141248]
[1724869252871,0.0004,59159.0,59158.0,0.507115]
[1724869253092,0.0004,59159.0,59158.0,0.845192]
[1724869253319,0.0004,59159.0,59158.0,0.85769735]
[1724869253787,0.0004,59159.0,59158.0,0.01250535]
[1724869253997,0.0004,59159.0,59158.0,0.169038]
[1724869254236,0.0004,59159.0,59158.0,0.18154335]
[1724869254492,0.0004,59159.0,59158.0,0.53262035]
[1724869254696,0.0004,59159.0,59158.0,0.85769735]
[1724869254902,0.0004,59159.0,59158.0,0.51962035]
[1724869255131,0.0004,59159.0,59158.0,0.02650535]
[1724869255132,0.0024,59159.0,59158.0,0.02650535]
[1724869255370,0.250535,59159.0,59158.0,0.01250535]
[1724869255578,0.588606,59159.0,59158.0,0.014]
[1724869255836,0.654806,59159.0,59158.0,0.025]
[1724869256275,0.316735,59159.0,59158.0,0.025]
[1724869256721,0.1457,59159.0,59158.0,0.03751595]
[1724869256973,0.0686,59159.0,59158.0,0.025]
[1724869257220,0.0004,59159.0,59158.0,0.19255395]
[1724869257439,0.0004,59159.0,59158.0,0.5230113]
[1724869257660,0.0004,59159.0,59158.0,0.5330113]
[1724869257884,0.0004,59159.0,59158.0,0.5470113]
[1724869258095,0.0004,59159.0,59158.0,0.5370113]
[1724869258324,0.0004,59159.0,59158.0,0.5230113]
[1724869258524,0.0014,59159.0,59158.0,0.5490113]
[1724869258725,0.0014,59159.0,59158.0,0.5350113]
[1724869258937,0.0004,59159.0,59158.0,0.5230113]
[1724869259357,0.0014,59159.0,59158.0,0.5360113]
[1724869259579,0.0014,59159.0,59158.0,0.8740883]
[1724869260243,0.0014,59159.0,59158.0,1.2261653]
[1724869260477,0.0004,59159.0,59158.0,0.8750883]
[1724869260706,0.0004,59159.0,59158.0,0.8610883]
[1724869260978,0.0004,59159.0,59158.0,1.2121653]
[1724869261196,0.0004,59159.0,59158.0,1.48633399]
[1724869261197,0.0014,59159.0,59158.0,1.48633399]
[1724869261405,0.0014,59159.0,59158.0,1.47333399]
[1724869261619,0.0014,59159.0,59158.0,1.82541099]
[1724869261839,0.0004,59159.0,59158.0,1.81241099]
[1724869262258,0.0004,59159.0,59158.0,1.88931099]
[1724869262936,0.0004,59159.0,59158.0,1.89231099]
[1724869263175,0.0004,59159.0,59158.0,1.96931099]
[1724869263396,0.0004,59159.0,59158.0,1.95531099]
[1724869263623,0.0004,59159.0,59158.0,1.95731099]
[1724869264085,0.0004,59159.0,59158.0,1.94331099]
[1724869264280,0.0004,59159.0,59158.0,1.95731099]
[1724869264281,0.001218,59159.0,59158.0,1.95731099]
[1724869264811,0.001218,59159.0,59158.0,1.97131099]
[1724869267412,0.001218,59159.0,59158.0,1.95731099]
[1724869267644,0.001218,59159.0,59158.0,2.72608464]
[1724869267864,0.001218,59159.0,59158.0,2.74008464]
[1724869268095,0.001218,59159.0,59158.0,2.75408464]
[1724869268312,0.001218,59159.0,59158.0,2.74008464]
[1724869268534,0.001218,59159.0,59158.0,2.41600764]
[1724869269155,0.001218,59159.0,59158.0,2.40200764]
[1724869269367,0.001218,59159.0,59158.0,2.4252402]
[1724869269848,0.001218,59159.0,59158.0,2.01193064]
[1724869270024,0.001218,59159.0,59158.0,1.20978495]
[1724869270237,0.001218,59159.0,59158.0,1.19578495]
[1724869270659,0.001218,59159.0,59158.0,0.54763095]
[1724869270879,0.001218,59159.0,59158.0,0.53363095]
[1724869271109,0.001218,59159.0,59158.0,0.18155395]
[1724869271324,0.001218,59159.0,59158.0,0.19555395]
[1724869271554,0.001218,59159.0,59158.0,0.20955395]
[1724869271760,0.001218,59159.0,59158.0,0.54763095]
[1724869271974,0.001218,59159.0,59158.0,1.22378495]
[1724869272201,0.001218,59159.0,59158.0,1.30668495]
[1724869272920,0.001218,59159.0,59158.0,1.29268495]
[1724869273130,0.001218,59159.0,59158.0,1.29068495]
[1724869273331,0.001218,59159.0,59158.0,1.30468495]
[1724869273539,0.001218,59159.0,59158.0,0.88370795]
[1724869273743,0.001218,59159.0,59158.0,0.51963095]
[1724869273984,0.001218,59159.0,59158.0,0.54763095]
[1724869274191,0.001218,59159.0,59158.0,0.88570795]
[1724869274392,0.001218,59159.0,59158.0,0.87170795]
[1724869274788,0.001218,59159.0,59158.0,0.85770795]
[1724869275038,0.001218,59159.0,59158.0,0.88170795]
[1724869275714,0.001218,59159.0,59158.0,1.30268495]
[1724869275926,0.001218,59159.0,59158.0,0.98760795]
[1724869276133,0.001218,59159.0,59158.0,1.31368495]
[1724869276374,0.001218,59159.0,59158.0,1.30168495]
[1724869276602,0.001218,59159.0,59158.0,1.61955364]
[1724869276831,0.001218,59159.0,59158.0,2.30770764]
[1724869277035,0.001218,59159.0,59158.0,2.41770764]
[1724869278955,0.00020404,59168.0,59167.0,1.76428569]
[1724869279197,0.00020404,59168.0,59167.0,2.03168569]
[1724869279624,0.34545699,59186.0,59185.0,0.168961]
[1724869280083,0.18864944,59189.0,59185.0,0.18142479]
[1724869280304,0.18864944,59189.0,59186.0,0.01814248]
[1724869280728,0.18864944,59189.0,59187.0,0.01246189]
[1724869281614,0.01969944,59189.0,59187.0,0.18141789]
[1724869281858,0.18864944,59189.0,59187.0,0.01246189]
[1724869282057,0.01969944,59189.0,59187.0,0.01246189]
[1724869282460,0.08529944,59189.0,59187.0,0.01246189]
[1724869282884,0.248553,59188.0,59187.0,0.01346189]
[1724869283056,0.248553,59188.0,59187.0,0.01646189]
[1724869283278,0.0796,59188.0,59187.0,0.01246189]
[1724869283481,0.0796,59188.0,59187.0,0.03500418]
[1724869283684,0.0796,59188.0,59187.0,0.01]
[1724869283885,0.0796,59188.0,59187.0,0.02245522]
[1724869285333,0.0796,59188.0,59187.0,0.19141122]
[1724869285544,0.0676,59189.0,59187.0,0.36036722]
[1724869285764,0.1415,59197.0,59195.0,0.337866]
[1724869285988,0.002,59198.0,59197.0,0.506781]
[1724869286206,0.14966,59201.0,59188.0,0.0484693]
[1724869286208,0.00816,59201.0,59198.0,0.506773]
[1724869286607,0.00816,59201.0,59198.0,0.168924]
[1724869286837,0.002,59200.0,59198.0,0.0124224]
[1724869287063,0.002,59200.0,59189.0,0.09988005]
[1724869287064,0.0653,59198.0,59189.0,0.02348005]
[1724869287274,0.0653,59198.0,59189.0,0.506843]
[1724869287495,0.168933,59195.0,59190.0,0.18135572]
[1724869287758,0.002,59191.0,59190.0,0.01240972]
[1724869287960,0.0812,59193.0,59190.0,0.01240972]
[1724869288179,0.002,59191.0,59185.0,0.337917]
[1724869288386,0.002,59191.0,59190.0,0.18135672]
[1724869288582,0.002,59191.0,59185.0,0.337917]
[1724869288793,0.170946,59191.0,59186.0,0.168956]
[1724869289056,0.002,59191.0,59185.0,0.337917]
[1724869289314,0.002,59191.0,59187.0,0.01241257]
[1724869289536,0.002,59191.0,59189.0,0.001]
[1724869289763,0.170945,59191.0,59189.0,0.001]
[1724869289982,0.002,59191.0,59189.0,0.001]
[1724869290447,0.002,59191.0,59185.0,0.168961]
[1724869290692,0.0812,59193.0,59190.0,0.01240904]
[1724869290913,0.168932,59196.0,59189.0,0.008]
[1724869291134,0.002,59193.0,59189.0,0.008]
[1724869291383,0.170938,59193.0,59190.0,0.01240904]
[1724869291837,0.168941,59192.0,59190.0,0.01240904]
[1724869292057,0.168944,59191.0,59189.0,0.008]
[1724869292280,0.246247,59190.0,59189.0,0.008]
[1724869292504,0.16895,59189.0,59180.0,0.1]
[1724869292728,0.168958,59186.0,59180.0,0.1]
[1724869292994,0.16897,59182.0,59181.0,0.01241902]
[1724869293270,0.92415,59182.0,59181.0,0.01241902]
[1724869293459,0.92415,59182.0,59161.0,0.24816869]
[1724869293460,0.002,59171.0,59162.0,0.0774]
[1724869293694,0.0773,59177.0,59163.0,0.01406]
[1724869293695,0.169017,59166.0,59163.0,0.01406]
[1724869293918,0.002,59171.0,59161.0,0.00338011]
[1724869294147,0.0773,59177.0,59165.0,0.169016]
[1724869294415,0.002,59179.0,59172.0,0.168998]
[1724869294644,0.002,59179.0,59170.0,0.169004]
[1724869294859,0.002,59179.0,59170.0,0.169003]
[1724869295075,0.002,59179.0,59171.0,0.04261517]
[1724869295076,0.168982,59178.0,59171.0,0.04261517]
[1724869295290,0.168982,59178.0,59171.0,0.05450433]
[1724869295752,0.168984,59177.0,59171.0,0.05450433]
[1724869295967,0.168984,59177.0,59172.0,0.0169016]
[1724869296191,0.170979,59179.0,59172.0,0.0169016]
[1724869296412,0.170979,59179.0,59173.0,0.01188725]
[1724869296413,0.168983,59178.0,59173.0,0.01188725]
[1724869296635,0.168985,59177.0,59173.0,0.01977929]
[1724869296870,0.168985,59177.0,59174.0,0.01189585]
[1724869297088,0.168987,59176.0,59174.0,0.01189585]
[1724869297307,0.168987,59176.0,59172.0,0.0169016]
[1724869297524,0.168987,59176.0,59175.0,0.0118949]
[1724869297742,0.16899,59175.0,59172.0,0.0169016]
[1724869298162,0.16899,59175.0,59173.0,0.01189643]
[1724869298398,0.506979,59174.0,59173.0,0.01189643]
[1724869298606,0.506979,59174.0,59165.0,0.0816]
[1724869298607,0.169005,59170.0,59165.0,0.0816]
[1724869298818,0.168993,59174.0,59168.0,0.169009]
[1724869299042,0.168993,59174.0,59173.0,0.001]
[1724869299043,0.506979,59174.0,59173.0,0.001]
[1724869299243,0.506986,59173.0,59172.0,0.001]
[1724869299452,1.263668,59173.0,59172.0,0.001]
[1724869299642,0.16903,59161.0,59160.0,0.0813]
[1724869299896,0.169027,59162.0,59161.0,0.01445]
[1724869300119,0.50909,59161.0,59160.0,0.01190927]
[1724869300301,0.507141,59155.0,59154.0,0.062]
[1724869300514,0.002,59157.0,59141.0,0.0008998]
[1724869300861,0.171065,59149.0,59143.0,0.16908]
[1724869300946,0.171065,59149.0,59141.0,0.0008998]
[1724869300947,0.340131,59149.0,59142.0,0.01193069]
[1724869301175,0.169071,59147.0,59142.0,0.01193069]
[1724869301405,0.338135,59148.0,59142.0,0.04413208]
[1724869301626,0.169068,59148.0,59142.0,0.21321408]
[1724869301883,0.338137,59148.0,59142.0,0.04413208]
[1724869302107,0.16907,59147.0,59142.0,0.04413208]
[1724869302334,0.16907,59147.0,59142.0,0.22721508]
[1724869302552,0.16907,59147.0,59142.0,0.24121508]
[1724869302770,0.16907,59147.0,59142.0,0.05813208]
[1724869302996,0.16907,59147.0,59143.0,0.02731538]
[1724869303450,0.16907,59147.0,59144.0,0.01203858]
[1724869303880,0.33812,59151.0,59144.0,0.01203858]
[1724869303881,0.340137,59148.0,59144.0,0.01203858]
[1724869304095,0.169075,59145.0,59144.0,0.01203858]
[1724869304308,0.169075,59145.0,59142.0,0.01]
[1724869304544,0.338141,59147.0,59144.0,0.01204096]
[1724869304545,0.169072,59147.0,59144.0,0.01204096]
[1724869304806,0.002,59148.0,59143.0,0.01204226]
[1724869305042,0.002,59148.0,59145.0,0.01204035]
[1724869305252,0.171067,59148.0,59144.0,0.03896397]
[1724869305469,0.171067,59148.0,59146.0,0.0120394]
[1724869305695,0.002,59152.0,59145.0,0.03343493]
[1724869305930,0.002,59152.0,59148.0,0.169066]
[1724869306166,0.171056,59152.0,59146.0,0.3501854]
[1724869306390,0.171056,59152.0,59149.0,0.01203655]
[1724869306618,0.171056,59152.0,59146.0,0.338146]
[1724869306619,0.171056,59152.0,59150.0,0.03501825]
[1724869306854,0.002,59152.0,59150.0,0.0120356]
[1724869307092,0.002,59157.0,59150.0,0.0120356]
[1724869307311,0.002,59156.0,59151.0,0.34149683]
[1724869307538,0.002,59156.0,59152.0,0.169054]
[1724869307777,0.002,59160.0,59153.0,0.02714134]
[1724869308023,0.002,59161.0,59156.0,0.338088]
[1724869308266,0.169022,59164.0,59159.0,0.169033]
[1724869308495,0.169022,59164.0,59154.0,0.01203179]
[1724869308496,0.002,59162.0,59157.0,0.169039]
[1724869308716,0.002,59162.0,59157.0,0.01202893]
[1724869308947,0.169035,59160.0,59157.0,0.0090455]
[1724869309400,0.169035,59160.0,59158.0,0.01202798]
[1724869309616,0.33806,59161.0,59158.0,0.01202798]
[1724869309617,0.16903,59161.0,59158.0,0.18106398]
[1724869309859,0.169033,59160.0,59158.0,0.01202798]
[1724869310103,0.169035,59159.0,59158.0,0.01202798]
[1724869310359,0.002,59160.0,59157.0,0.001]
[1724869310600,0.002,59160.0,59158.0,0.18106598]
[1724869311098,0.002,59160.0,59158.0,0.01202798]
[1724869312468,0.002,59160.0,59158.0,0.01302798]
[1724869312925,0.171034,59160.0,59158.0,0.01302798]
[1724869313573,0.169035,59159.0,59158.0,0.01302798]
[1724869313789,0.169035,59159.0,59158.0,0.01392668]
[1724869313995,0.002,59160.0,59158.0,0.18296468]
[1724869314217,0.002,59160.0,59158.0,0.01392668]
[1724869315068,0.00179665,59160.0,59158.0,0.01392668]
[1724869315487,0.00179665,59160.0,59158.0,0.01292668]
[1724869315916,0.00179665,59165.0,59158.0,0.01592668]
[1724869316204,0.17081565,59165.0,59159.0,0.33807]
[1724869316409,0.17081565,59165.0,59161.0,0.169029]
[1724869316625,0.00179665,59165.0,59159.0,0.18104077]
[1724869316866,0.169022,59164.0,59160.0,0.18103881]
[1724869317086,0.50886965,59163.0,59162.0,0.01200491]
[1724869317296,0.50886965,59163.0,59158.0,0.0008987]
[1724869317297,0.169034,59160.0,59158.0,0.0008987]
[1724869319505,0.00179665,59161.0,59158.0,0.0008987]
[1724869319685,0.84697365,59159.0,59158.0,0.0018987]
[1724869320137,0.50890265,59159.0,59158.0,0.0018987]
[1724869320559,0.0773,59167.0,59158.0,0.0008987]
[1724869320812,0.00179665,59162.0,59158.0,0.0008987]
[1724869321056,0.17082965,59160.0,59158.0,0.0008987]
[1724869321299,0.50890265,59159.0,59158.0,0.0008987]
[1724869321543,0.98747365,59159.0,59158.0,0.0008987]
[1724869321758,1.32554465,59159.0,59158.0,0.0008987]
[1724869323056,1.32554465,59159.0,59158.0,0.0038987]
[1724869323498,0.17082765,59161.0,59158.0,0.0008987]
[1724869323720,0.5668,59169.0,59159.0,0.09489377]
[1724869323721,0.00179665,59163.0,59159.0,0.09489377]
[1724869323946,0.00179665,59163.0,59160.0,0.169032]
[1724869324173,0.00179665,59163.0,59161.0,0.169029]
[1724869324398,0.00179665,59163.0,59162.0,0.169027]
[1724869324636,0.00179665,59163.0,59162.0,0.01202251]
[1724869324876,0.00179665,59170.0,59162.0,0.01202251]
[1724869325125,0.00179665,59173.0,59169.0,0.0779]
[1724869325367,0.00179665,59173.0,59172.0,0.168998]
[1724869325838,0.17079165,59173.0,59172.0,0.01198688]
[1724869326105,0.00179665,59173.0,59165.0,0.0779]
[1724869326331,0.169,59172.0,59168.0,0.169009]
[1724869326825,0.169,59172.0,59169.0,0.01198973]
[1724869327532,0.00179665,59170.0,59169.0,0.01198973]
[1724869328257,0.00179665,59170.0,59169.0,0.01698973]
[1724869328735,0.00179665,59170.0,59169.0,0.18099673]
[1724869329003,0.50880965,59170.0,59169.0,0.01198973]
[1724869329246,0.00179665,59170.0,59169.0,0.02298973]
[1724869329484,0.00179665,59173.0,59171.0,0.169]
[1724869329710,0.000818,59176.0,59171.0,0.169]
[1724869329711,0.00179665,59174.0,59173.0,0.168993]
[1724869329968,0.000818,59176.0,59175.0,0.16899]
[1724869330200,0.000818,59176.0,59175.0,0.57107]
[1724869330442,0.000818,59176.0,59175.0,0.18096092]
[1724869330676,0.17160165,59176.0,59175.0,0.01197092]
[1724869330914,0.17160165,59176.0,59169.0,0.338014]
[1724869330915,0.17160165,59176.0,59171.0,0.168999]
[1724869331140,0.168993,59175.0,59173.0,0.008]
[1724869331401,0.00261465,59176.0,59173.0,0.008]
[1724869331826,0.17160165,59176.0,59175.0,0.007]
[1724869332043,0.84754965,59176.0,59175.0,0.007]
[1724869332259,0.84754965,59176.0,59173.0,0.008]
[1724869332260,0.506979,59174.0,59173.0,0.008]
[1724869332494,0.506979,59174.0,59173.0,0.016]
[1724869332495,0.92546165,59174.0,59173.0,0.016]
[1724869332996,0.92546165,59174.0,59173.0,0.008]
[1724869333880,0.92546165,59174.0,59167.0,0.169012]
[1724869333881,0.337998,59172.0,59167.0,0.169012]
[1724869334112,0.00179665,59168.0,59167.0,0.169012]
[1724869334743,0.00179665,59168.0,59166.0,0.169015]
[1724869335455,0.00179665,59168.0,59164.0,0.338042]
[1724869335687,0.00179665,59168.0,59167.0,0.179013]
[1724869336366,0.00179665,59168.0,59167.0,0.192013]
[1724869336580,0.00179665,59168.0,59167.0,0.179013]
[1724869337059,0.00179665,59174.0,59167.0,0.024]
[1724869337290,0.000818,59176.0,59175.0,0.16899]
[1724869337517,0.000818,59176.0,59175.0,0.64897]
[1724869337740,0.000818,59176.0,59175.0,0.98695]
[1724869339143,0.000818,59176.0,59175.0,0.98895]
[1724869339449,0.000818,59176.0,59175.0,0.99395]
[1724869339930,0.000818,59176.0,59175.0,1.34388485]
[1724869340164,0.000818,59176.0,59175.0,1.68186485]
[1724869340385,0.000818,59176.0,59175.0,1.70686485]